fUST/lending_fUST_20250819
["ID","MTS","AMOUNT","RATE_DAILY","PERIOD"]
[380228336,1755618646796,-250.517387,0.00019726,2]
[380228337,1755618646808,-480.0,0.00019726,2]
[380228338,1755618646818,-480.0,0.00019726,2]
[380228339,1755618646830,-480.0,0.00019726,2]
[380228340,1755618646840,-595.01,0.00019726,2]
[380228341,1755618646853,-961.07,0.00019726,2]
[380228342,1755618646864,-151.0,0.00019726,2]
[380228343,1755618646874,-1261.24,0.00019726,2]
[380228344,1755618646884,-1125.26,0.00019726,2]
[380228345,1755618646894,-480.0,0.00019726,2]
[380228346,1755618646904,-578.38142263,0.00019726,2]
[380228347,1755618646914,-480.0,0.00019726,2]
[380228348,1755618646924,-640.29,0.00019726,2]
[380228349,1755618646938,-480.0,0.00019726,2]
[380228350,1755618646959,-480.0,0.00019726,2]
[380228351,1755618646971,-480.0,0.00019726,2]
[380228352,1755618646982,-480.0,0.00019726,2]
[380228353,1755618646993,-480.0,0.00019726,2]
[380228354,1755618647002,-836.41,0.00019726,2]
[380228355,1755618647012,-480.0,0.00019726,2]
[380228356,1755618647023,-272.32957479,0.00019726,2]
[380228357,1755618647035,-587.75,0.00019726,2]
[380228358,1755618647046,-151.0,0.00019726,2]
[380228359,1755618647056,-480.0,0.00019726,2]
[380228360,1755618647067,-502.07,0.00019726,2]
[380228361,1755618647078,-1137.61,0.00019726,2]
[380228362,1755618647088,-954.51,0.00019726,2]
[380228363,1755618647097,-1343.33,0.00019726,2]
[380228364,1755618647108,-466.20510848,0.00019726,2]
[380228365,1755618647118,-947.83,0.00019726,2]
[380228366,1755618647129,-280.84124652,0.00019726,2]
[380228367,1755618647139,-480.0,0.00019726,2]
[380228368,1755618647148,-151.0,0.00019726,2]
[380228369,1755618647158,-514.25739513,0.00019726,2]
[380228370,1755618647168,-602.28,0.00019726,2]
[380228371,1755618647179,-480.0,0.00019726,2]
[380228372,1755618647189,-151.0,0.00019726,2]
[380228373,1755618647198,-524.82,0.00019726,2]
[380228374,1755618647208,-483.68,0.00019726,2]
[380228375,1755618647218,-151.0,0.00019726,2]
[380228376,1755618647227,-151.0,0.00019726,2]
[380228377,1755618647236,-480.0,0.00019726,2]
[380228378,1755618647246,-151.0,0.00019726,2]
[380228379,1755618647256,-480.0,0.00019726,2]
[380228380,1755618647266,-151.0,0.00019726,2]
[380228381,1755618647275,-500.07,0.00019726,2]
[380228382,1755618647284,-460.0,0.00019726,2]
[380228383,1755618647294,-480.0,0.00019726,2]
[380228384,1755618647303,-2586.75,0.00019726,2]
[380228385,1755618647314,-151.0,0.00019726,2]
[380228386,1755618647323,-999.92,0.00019726,2]
[380228387,1755618647334,-480.0,0.00019726,2]
[380228388,1755618647343,-151.0,0.00019726,2]
[380228389,1755618647353,-151.0,0.00019726,2]
[380228390,1755618647363,-151.0,0.00019726,2]
[380228391,1755618647372,-151.0,0.00019726,2]
[380228392,1755618647382,-480.0,0.00019726,2]
[380228393,1755618647391,-3164.0,0.00019726,2]
[380228394,1755618647400,-569.41,0.00019726,2]
[380228395,1755618647409,-222.766115,0.00019726,2]
[380228396,1755618647419,-762.55,0.00019726,2]
[380228397,1755618647428,-480.0,0.00019726,2]
[380228398,1755618647437,-480.0,0.00019726,2]
[380228399,1755618647447,-151.000001,0.00019726,2]
[380228400,1755618647456,-480.0,0.00019726,2]
[380228401,1755618647465,-480.0,0.00019726,2]
[380228402,1755618647475,-480.0,0.00019726,2]
[380228403,1755618647484,-480.0,0.00019726,2]
[380228404,1755618647493,-1158.3,0.00019726,2]
[380228405,1755618647502,-480.0,0.00019726,2]
[380228406,1755618647620,-422.53977297,0.00019726,2]
[380228407,1755618647629,-769.12,0.00019726,2]
[380228408,1755618647639,-480.0,0.00019726,2]
[380228409,1755618647649,-1823.15,0.00019726,2]
[380228410,1755618647659,-460.0,0.00019726,2]
[380228411,1755618647668,-1160.5,0.00019726,2]
[380228412,1755618647677,-480.0,0.00019726,2]
[380228413,1755618647687,-151.0,0.00019726,2]
[380228414,1755618647696,-480.0,0.00019726,2]
[380228415,1755618647705,-480.0,0.00019726,2]
[380228416,1755618647714,-480.0,0.00019726,2]
[380228417,1755618647723,-151.0,0.00019726,2]
[380228418,1755618647733,-935.01,0.00019726,2]
[380228419,1755618647742,-151.0,0.00019726,2]
[380228420,1755618647752,-480.0,0.00019726,2]
[380228421,1755618647767,-1886.12,0.00019726,2]
[380228422,1755618647778,-151.0,0.00019726,2]
[380228423,1755618647790,-151.0,0.00019726,2]
[380228424,1755618647799,-151.0,0.00019726,2]
[380228425,1755618647810,-480.0,0.00019726,2]
[380228426,1755618647820,-151.0,0.00019726,2]
[380228427,1755618647829,-151.0,0.00019726,2]
[380228428,1755618647841,-500.0,0.00019726,2]
[380228429,1755618647851,-500.0,0.00019773,2]
[380228430,1755618647860,-393.23079542,0.00019773,2]
[380228431,1755618647870,-500.0,0.00019773,2]
[380228432,1755618647879,-500.0,0.00019773,2]
[380228433,1755618647889,-500.0,0.00019773,2]
[380228434,1755618647899,-500.0,0.00019773,2]
[380228435,1755618647908,-392.879872,0.00019863,2]
[380228436,1755618647918,-220.1,0.00019892,2]
[380228437,1755618647927,-7137.92033367,0.000199,2]
[380228438,1755618647937,-151.0,0.000199,2]
[380228439,1755618647947,-2264.71755116,0.000199,2]
[380228440,1755618647956,-151.0,0.000199,2]
[380228441,1755618647965,-500.0,0.00019973,2]
[380228442,1755618647975,-500.0,0.00019973,2]
[380228443,1755618647984,-500.0,0.00019973,2]
[380228444,1755618647993,-500.0,0.00019973,2]
[380228445,1755618648002,-500.0,0.00019973,2]
[380228446,1755618648012,-500.4708925,0.00019973,2]
[380228447,1755618648022,-341.34091482,0.00019973,2]
[380228448,1755618648032,-500.0,0.00019973,2]
[380228449,1755618648041,-500.0,0.00019973,2]
[380228450,1755618648051,-500.0,0.00019973,2]
[380228451,1755618648060,-500.36278189,0.00019973,2]
[380228452,1755618648070,-500.0,0.00019973,2]
[380228453,1755618648080,-500.0,0.00019973,2]
[380228454,1755618648093,-500.0,0.00019973,2]
[380228455,1755618648103,-500.0,0.00019973,2]
[380228456,1755618648112,-500.0,0.00019973,2]
[380228457,1755618648122,-502.59429379,0.00019973,2]
[380228458,1755618648132,-500.0,0.00019973,2]
[380228459,1755618648142,-500.0,0.00019973,2]
[380228460,1755618648152,-500.0,0.00019973,2]
[380228461,1755618648162,-500.0,0.00019973,2]
[380228462,1755618648172,-161.09194451,0.00019973,2]
[380228463,1755618648182,-500.0,0.00019973,2]
[380228464,1755618648191,-68068.65571525,0.0001999,2]
[380228465,1755618648201,-2000.0,0.0002,2]
[380228466,1755618648210,-500.0,0.0002,2]
[380228467,1755618648220,-480.0,0.0002,2]
[380228468,1755618648230,-480.0,0.0002,2]
[380228469,1755618648239,-1576.07,0.0002,2]
[380228470,1755618648249,-480.0,0.0002,2]
[380228471,1755618648258,-480.0,0.0002,2]
[380228472,1755618648268,-480.0,0.0002,2]
[380228473,1755618648278,-2981.05877791,0.0002,2]
[380228474,1755618648288,-480.0,0.0002,2]
[380228475,1755618648298,-535.34192878,0.0002,2]
[380228476,1755618648307,-460.0,0.0002,2]
[380228477,1755618648317,-480.0,0.0002,2]
[380228478,1755618648326,-480.0,0.0002,2]
[380228479,1755618648339,-480.0,0.0002,2]
[380228480,1755618648348,-430.14023818,0.0002,2]
[380228481,1755618648358,-2883.4,0.0002,2]
[380228482,1755618648367,-480.0,0.0002,2]
[380228483,1755618648377,-480.0,0.0002,2]
[380228484,1755618648387,-480.0,0.0002,2]
[380228485,1755618648396,-480.0,0.0002,2]
[380228486,1755618648406,-480.0,0.0002,2]
[380228487,1755618648416,-480.0,0.0002,2]
[380228488,1755618648426,-480.0,0.0002,2]
[380228489,1755618648436,-480.0,0.0002,2]
[380228490,1755618648446,-443.66953913,0.0002,2]
[380228491,1755618648456,-610.46,0.0002,2]
[380228492,1755618648466,-480.0,0.0002,2]
[380228493,1755618648475,-480.0,0.0002,2]
[380228494,1755618648485,-522.41,0.0002,2]
[380228495,1755618648494,-480.0,0.0002,2]
[380228496,1755618648505,-460.0,0.0002,2]
[380228497,1755618648515,-2992.99,0.0002,2]
[380228498,1755618648524,-480.0,0.0002,2]
[380228499,1755618648533,-480.0,0.0002,2]
[380228500,1755618648543,-480.0,0.0002,2]
[380228501,1755618648552,-480.0,0.0002,2]
[380228502,1755618648561,-824.41,0.0002,2]
[380228503,1755618648571,-480.0,0.0002,2]
[380228504,1755618648580,-480.0,0.0002,2]
[380228505,1755618648591,-480.0,0.0002,2]
[380228506,1755618648600,-480.0,0.0002,2]
[380228507,1755618648610,-480.0,0.0002,2]
[380228508,1755618648620,-480.0,0.0002,2]
[380228509,1755618648629,-151.0,0.0002,2]
[380228510,1755618648639,-480.0,0.0002,2]
[380228511,1755618648649,-151.0,0.0002,2]
[380228512,1755618648659,-489.17,0.0002,2]
[380228513,1755618648668,-480.0,0.0002,2]
[380228514,1755618648677,-548.22,0.0002,2]
[380228515,1755618648687,-480.0,0.0002,2]
[380228516,1755618648697,-480.0,0.0002,2]
[380228517,1755618648707,-520.07,0.0002,2]
[380228518,1755618648717,-480.0,0.0002,2]
[380228519,1755618648727,-480.0,0.0002,2]
[380228520,1755618648736,-1198.36,0.0002,2]
[380228521,1755618648746,-480.0,0.0002,2]
[380228522,1755618648755,-167.803922,0.0002,2]
[380228523,1755618648766,-151.0,0.0002,2]
[380228524,1755618648777,-151.0,0.0002,2]
[380228525,1755618648787,-480.0,0.0002,2]
[380228526,1755618648796,-151.0,0.0002,2]
[380228527,1755618648806,-151.0,0.0002,2]
[380228528,1755618648816,-480.0,0.0002,2]
[380228529,1755618648826,-554.462247,0.0002,2]
[380228530,1755618648836,-1089.51,0.0002,2]
[380228531,1755618648846,-480.0,0.0002,2]
[380228532,1755618648858,-543.75,0.0002,2]
[380228533,1755618648868,-480.0,0.0002,2]
[380228534,1755618648878,-1866.23,0.0002,2]
[380228535,1755618648887,-467.83395752,0.0002,2]
[380228536,1755618648897,-151.0,0.0002,2]
[380228537,1755618648907,-808.6,0.0002,2]
[380228538,1755618648916,-1534.07,0.0002,2]
[380228539,1755618648926,-151.274819,0.0002,2]
[380228540,1755618648936,-151.0,0.0002,2]
[380228541,1755618648946,-782.67,0.0002,2]
[380228542,1755618648955,-579.53817664,0.0002,2]
[380228543,1755618648965,-480.0,0.0002,2]
[380228544,1755618648975,-178.333883,0.0002,2]
[380228545,1755618648985,-151.0,0.0002,2]
[380228546,1755618648994,-151.0,0.0002,2]
[380228547,1755618649004,-2156.47,0.0002,2]
[380228548,1755618649014,-457.81374551,0.0002,2]
[380228549,1755618649024,-850.8,0.0002,2]
[380228550,1755618649033,-151.0,0.0002,2]
[380228551,1755618649043,-533.17,0.0002,2]
[380228552,1755618649053,-462.4230419,0.0002,2]
[380228553,1755618649062,-480.0,0.0002,2]
[380228554,1755618649072,-151.0,0.0002,2]
[380228555,1755618649081,-151.0,0.0002,2]
[380228556,1755618649093,-151.0,0.0002,2]
[380228557,1755618649102,-1568.73,0.0002,2]
[380228558,1755618649111,-480.0,0.0002,2]
[380228559,1755618649121,-480.0,0.0002,2]
[380228560,1755618649131,-325.50678981,0.0002,2]
[380228561,1755618649141,-168.137965,0.0002,2]
[380228562,1755618649151,-480.0,0.0002,2]
[380228563,1755618649160,-480.0,0.0002,2]
[380228564,1755618649170,-480.0,0.0002,2]
[380228565,1755618649180,-480.0,0.0002,2]
[380228566,1755618649190,-151.0,0.0002,2]
[380228567,1755618649200,-480.0,0.0002,2]
[380228568,1755618649210,-151.0,0.0002,2]
[380228569,1755618649219,-505.83,0.0002,2]
[380228570,1755618649229,-475.96386539,0.0002,2]
[380228571,1755618649238,-151.0,0.0002,2]
[380228572,1755618649248,-480.0,0.0002,2]
[380228573,1755618649258,-151.0,0.0002,2]
[380228574,1755618649267,-480.0,0.0002,2]
[380228575,1755618649276,-480.0,0.0002,2]
[380228576,1755618649286,-480.0,0.0002,2]
[380228577,1755618649296,-480.0,0.0002,2]
[380228578,1755618649306,-460.0,0.0002,2]
[380228579,1755618649317,-480.0,0.0002,2]
[380228580,1755618649326,-480.0,0.0002,2]
[380228581,1755618649338,-480.0,0.0002,2]
[380228582,1755618649347,-8244.61,0.0002,2]
[380228583,1755618649357,-194.994437,0.0002,2]
[380228584,1755618649366,-440.078515,0.0002,2]
[380228585,1755618649375,-440.078515,0.0002,2]
[380228586,1755618649384,-160.0,0.0002,3]
[380228587,1755618649393,-480.0,0.0002,2]
[380228588,1755618649403,-440.078515,0.0002,2]
[380228589,1755618649413,-440.078515,0.0002,2]
[380228590,1755618649422,-480.0,0.0002,2]
[380228591,1755618649433,-151.000001,0.0002,2]
[380228592,1755618649442,-659.66,0.0002,2]
[380228593,1755618649452,-480.0,0.0002,2]
[380228594,1755618649461,-976.04,0.0002,2]
[380228595,1755618649470,-480.0,0.0002,2]
[380228596,1755618649479,-625.16,0.0002,2]
[380228597,1755618649489,-151.0,0.0002,2]
[380228598,1755618649498,-151.0,0.0002,2]
[380228599,1755618649508,-151.0,0.0002,2]
[380228600,1755618649517,-151.0,0.0002,2]
[380228601,1755618649526,-480.0,0.0002,2]
[380228602,1755618649536,-606.56655517,0.0002,2]
[380228603,1755618649545,-480.0,0.0002,2]
[380228604,1755618649555,-547.61,0.0002,2]
[380228605,1755618649564,-604.27,0.0002,2]
[380228606,1755618649574,-151.0,0.0002,2]
[380228607,1755618649584,-151.0,0.0002,2]
[380228608,1755618649593,-151.0,0.0002,2]
[380228609,1755618649603,-747.0,0.0002,2]
[380228610,1755618649612,-480.0,0.0002,2]
[380228611,1755618649622,-151.0,0.0002,2]
[380228612,1755618649632,-151.0,0.0002,2]
[380228613,1755618649642,-151.0,0.0002,2]
[380228614,1755618649652,-480.0,0.0002,2]
[380228615,1755618649661,-213.054389,0.0002,2]
[380228616,1755618649671,-151.0,0.0002,2]
[380228617,1755618649681,-480.0,0.0002,2]
[380228618,1755618649690,-480.0,0.0002,2]
[380228619,1755618649699,-480.0,0.0002,2]
[380228620,1755618649710,-480.0,0.0002,2]
[380228621,1755618649720,-800.68,0.0002,2]
[380228622,1755618649729,-480.0,0.0002,2]
[380228623,1755618649739,-151.0,0.0002,2]
[380228624,1755618649749,-151.0,0.0002,2]
[380228625,1755618649759,-151.0,0.0002,2]
[380228626,1755618649769,-151.0,0.0002,2]
[380228627,1755618649783,-480.0,0.0002,2]
[380228628,1755618649793,-480.0,0.0002,2]
[380228629,1755618649803,-173.637761,0.0002,2]
[380228630,1755618649812,-547.63,0.0002,2]
[380228631,1755618649822,-151.0,0.0002,2]
[380228632,1755618649832,-480.0,0.0002,2]
[380228633,1755618649842,-151.0,0.0002,2]
[380228634,1755618649853,-151.0,0.0002,2]
[380228635,1755618649864,-9407.72,0.0002,2]
[380228636,1755618649873,-830.84,0.0002,2]
[380228637,1755618649883,-151.0,0.0002,2]
[380228638,1755618649893,-480.0,0.0002,2]
[380228639,1755618649902,-480.0,0.0002,2]
[380228640,1755618649912,-151.0,0.0002,2]
[380228641,1755618649921,-480.0,0.0002,2]
[380228642,1755618649931,-480.0,0.0002,2]
[380228643,1755618649942,-480.0,0.0002,2]
[380228644,1755618649952,-151.0,0.0002,2]
[380228645,1755618649961,-480.0,0.0002,2]
[380228646,1755618649971,-480.0,0.0002,2]
[380228647,1755618649981,-544.61,0.0002,2]
[380228648,1755618649990,-151.0,0.0002,2]
[380228649,1755618650106,-502.17,0.0002,2]
[380228650,1755618650116,-480.0,0.0002,2]
[380228651,1755618650126,-1037.36,0.0002,2]
[380228652,1755618650135,-480.0,0.0002,2]
[380228653,1755618650145,-480.0,0.0002,2]
[380228654,1755618650155,-480.0,0.0002,2]
[380228655,1755618650165,-742.49,0.0002,2]
[380228656,1755618650174,-1543.75,0.0002,2]
[380228657,1755618650184,-480.0,0.0002,2]
[380228658,1755618650193,-480.0,0.0002,2]
[380228659,1755618650202,-206.08115851,0.0002,2]
[380228660,1755618650211,-480.0,0.0002,2]
[380228661,1755618650221,-1000.0,0.0002,2]
[380228662,1755618650230,-1000.0,0.0002,2]
[380228663,1755618650240,-1000.0,0.0002,2]
[380228664,1755618650250,-480.0,0.0002,2]
[380228665,1755618650259,-1000.0,0.0002,2]
[380228666,1755618650269,-1000.0,0.0002,2]
[380228667,1755618650279,-1000.0,0.0002,2]
[380228668,1755618650289,-1000.0,0.0002,2]
[380228669,1755618650299,-480.0,0.0002,2]
[380228670,1755618650308,-1000.0,0.0002,2]
[380228671,1755618650318,-1000.0,0.0002,2]
[380228672,1755618650327,-480.0,0.0002,2]
[380228673,1755618650338,-1000.0,0.0002,2]
[380228674,1755618650347,-1000.0,0.0002,2]
[380228675,1755618650356,-1000.0,0.0002,2]
[380228676,1755618650366,-1000.0,0.0002,2]
[380228677,1755618650375,-1344.35,0.0002,2]
[380228678,1755618650385,-1000.0,0.0002,2]
[380228679,1755618650394,-1000.0,0.0002,2]
[380228680,1755618650404,-914.91492802,0.0002,2]
[380228681,1755618650413,-2717.77,0.0002,2]
[380228682,1755618650423,-1307.59,0.0002,2]
[380228683,1755618650432,-151.0,0.0002,2]
[380228684,1755618650442,-1327.62,0.0002,2]
[380228685,1755618650452,-151.0,0.0002,2]
[380228686,1755618650461,-151.0,0.0002,2]
[380228687,1755618650470,-151.0,0.0002,2]
[380228688,1755618650480,-151.0,0.0002,2]
[380228689,1755618650489,-480.0,0.0002,2]
[380228690,1755618650499,-480.0,0.0002,2]
[380228691,1755618650508,-480.0,0.0002,2]
[380228692,1755618650518,-595.01,0.0002,2]
[380228693,1755618650527,-961.07,0.0002,2]
[380228694,1755618650537,-151.0,0.0002,2]
[380228695,1755618650547,-1261.24,0.0002,2]
[380228696,1755618650557,-1125.26,0.0002,2]
[380228697,1755618650566,-480.0,0.0002,2]
[380228698,1755618650575,-480.0,0.0002,2]
[380228699,1755618650586,-640.29,0.0002,2]
[380228700,1755618650595,-480.0,0.0002,2]
[380228701,1755618650605,-41498.02,0.0002,2]
[380228702,1755618650614,-480.0,0.0002,2]
[380228703,1755618650624,-480.0,0.0002,2]
[380228704,1755618650634,-836.41,0.0002,2]
[380228705,1755618650643,-587.75,0.0002,2]
[380228706,1755618650653,-151.0,0.0002,2]
[380228707,1755618650663,-502.07,0.0002,2]
[380228708,1755618650672,-1137.61,0.0002,2]
[380228709,1755618650682,-954.51,0.0002,2]
[380228710,1755618650691,-1343.33,0.0002,2]
[380228711,1755618650701,-947.83,0.0002,2]
[380228712,1755618650711,-480.0,0.0002,2]
[380228713,1755618650720,-151.0,0.0002,2]
[380228714,1755618650729,-442.17755315,0.0002,2]
[380228715,1755618650739,-524.82,0.0002,2]
[380228716,1755618650748,-483.68,0.0002,2]
[380228717,1755618650757,-167.903709,0.0002,2]
[380228718,1755618650770,-480.0,0.0002,2]
[380228719,1755618650779,-151.0,0.0002,2]
[380228720,1755618650789,-480.0,0.0002,2]
[380228721,1755618650799,-151.0,0.0002,2]
[380228722,1755618650809,-500.07,0.0002,2]
[380228723,1755618650819,-460.0,0.0002,2]
[380228724,1755618650828,-2586.75,0.0002,2]
[380228725,1755618650839,-602.28,0.0002,2]
[380228726,1755618650851,-151.0,0.0002,2]
[380228727,1755618650860,-999.92,0.0002,2]
[380228728,1755618650870,-480.0,0.0002,2]
[380228729,1755618650880,-151.0,0.0002,2]
[380228730,1755618650889,-151.0,0.0002,2]
[380228731,1755618650899,-151.0,0.0002,2]
[380228732,1755618650909,-151.0,0.0002,2]
[380228733,1755618650919,-480.0,0.0002,2]
[380228734,1755618650928,-569.41,0.0002,2]
[380228735,1755618650939,-762.55,0.0002,2]
[380228736,1755618650949,-480.0,0.0002,2]
[380228737,1755618650959,-480.0,0.0002,2]
[380228738,1755618650969,-480.0,0.0002,2]
[380228739,1755618650978,-480.0,0.0002,2]
[380228740,1755618650988,-480.0,0.0002,2]
[380228741,1755618650998,-480.0,0.0002,2]
[380228742,1755618651007,-1158.3,0.0002,2]
[380228743,1755618651017,-769.12,0.0002,2]
[380228744,1755618651027,-1823.15,0.0002,2]
[380228745,1755618651037,-1160.5,0.0002,2]
[380228746,1755618651047,-499.554805,0.0002,2]
[380228747,1755618651057,-151.0,0.0002,2]
[380228748,1755618651066,-195.95233093,0.0002,2]
[380228749,1755618651075,-394.95566895,0.0002,2]
[380228750,1755618651087,-480.0,0.0002,2]
[380228751,1755618651096,-151.0,0.0002,2]
[380228752,1755618651106,-935.01,0.0002,2]
[380228753,1755618651115,-151.484349,0.0002,2]
[380228754,1755618651125,-480.0,0.0002,2]
[380228755,1755618651135,-1886.12,0.0002,2]
[380228756,1755618651144,-151.0,0.0002,2]
[380228757,1755618651154,-151.0,0.0002,2]
[380228758,1755618651164,-480.0,0.0002,2]
[380228759,1755618651174,-151.0,0.0002,2]
[380228760,1755618651184,-151.0,0.0002,2]
[380228761,1755618651193,-1000.0,0.00020021,2]
[380228762,1755618651203,-151.0,0.000201,4]
[380228763,1755618651213,-2623.50106419,0.00020122,2]
[380228764,1755618651224,-379.64513,0.00020187,2]
[380228765,1755618651233,-151.0,0.000202,4]
[380228766,1755618651243,-2716.59665425,0.00020235,2]
[380228767,1755618651252,-388.53797475,0.00020268,2]
[380228768,1755618651262,-480.0,0.00020273,2]
[380228769,1755618651273,-480.0,0.00020273,2]
[380228770,1755618651283,-1576.07,0.00020273,2]
[380228771,1755618651292,-319.99548297,0.00020273,2]
[380228772,1755618651302,-480.0,0.00020273,2]
[380228773,1755618651311,-480.0,0.00020273,2]
[380228774,1755618651321,-480.0,0.00020273,2]
[380228775,1755618651330,-480.0,0.00020273,2]
[380228776,1755618651340,-357.94484887,0.00020273,2]
[380228777,1755618651350,-480.0,0.00020273,2]
[380228778,1755618651360,-2883.4,0.00020273,2]
[380228779,1755618651369,-480.0,0.00020273,2]
[380228780,1755618651379,-480.0,0.00020273,2]
[380228781,1755618651388,-480.0,0.00020273,2]
[380228782,1755618651398,-480.0,0.00020273,2]
[380228783,1755618651408,-480.0,0.00020273,2]
[380228784,1755618651418,-480.0,0.00020273,2]
[380228785,1755618651428,-480.0,0.00020273,2]
[380228786,1755618651437,-366.04539848,0.00020273,2]
[380228787,1755618651447,-610.46,0.00020273,2]
[380228788,1755618651456,-480.0,0.00020273,2]
[380228789,1755618651466,-480.0,0.00020273,2]
[380228790,1755618651476,-522.41,0.00020273,2]
[380228791,1755618651485,-480.0,0.00020273,2]
[380228792,1755618651495,-2992.99,0.00020273,2]
[380228793,1755618651504,-480.0,0.00020273,2]
[380228794,1755618651514,-480.0,0.00020273,2]
[380228795,1755618651524,-151.0,0.00020273,2]
[380228796,1755618651534,-480.0,0.00020273,2]
[380228797,1755618651543,-151.0,0.00020273,2]
[380228798,1755618651552,-480.0,0.00020273,2]
[380228799,1755618651562,-824.41,0.00020273,2]
[380228800,1755618651571,-480.0,0.00020273,2]
[380228801,1755618651581,-151.0,0.00020273,2]
[380228802,1755618651591,-480.0,0.00020273,2]
[380228803,1755618651600,-460.0,0.00020273,2]
[380228804,1755618651610,-480.0,0.00020273,2]
[380228805,1755618651619,-400.0,0.00020273,2]
[380228806,1755618651629,-480.0,0.00020273,2]
[380228807,1755618651639,-489.17,0.00020273,2]
[380228808,1755618651649,-350.23072978,0.00020273,2]
[380228809,1755618651658,-548.22,0.00020273,2]
[380228810,1755618651668,-262.42206359,0.00020273,2]
[380228811,1755618651677,-480.0,0.00020273,2]
[380228812,1755618651686,-520.07,0.00020273,2]
[380228813,1755618651696,-480.0,0.00020273,2]
[380228814,1755618651705,-480.0,0.00020273,2]
[380228815,1755618651715,-1198.36,0.00020273,2]
[380228816,1755618651725,-480.0,0.00020273,2]
[380228817,1755618651734,-480.0,0.00020273,2]
[380228818,1755618651744,-480.0,0.00020273,2]
[380228819,1755618651754,-1089.51,0.00020273,2]
[380228820,1755618651766,-480.0,0.00020273,2]
[380228821,1755618651776,-543.75,0.00020273,2]
[380228822,1755618651786,-480.0,0.00020273,2]
[380228823,1755618651795,-1866.23,0.00020273,2]
[380228824,1755618651806,-808.6,0.00020273,2]
[380228825,1755618651815,-1534.07,0.00020273,2]
[380228826,1755618651824,-782.67,0.00020273,2]
[380228827,1755618651833,-480.0,0.00020273,2]
[380228828,1755618651844,-2156.47,0.00020273,2]
[380228829,1755618651853,-850.8,0.00020273,2]
[380228830,1755618651863,-533.17,0.00020273,2]
[380228831,1755618651872,-480.0,0.00020273,2]
[380228832,1755618651882,-1568.73,0.00020273,2]
[380228833,1755618651892,-480.0,0.00020273,2]
[380228834,1755618651901,-480.0,0.00020273,2]
[380228835,1755618651910,-480.0,0.00020273,2]